bitfinex/quotes_SOLUSD_20240916
["timestamp","ask_amount","ask_price","bid_price","bid_amount"]
[1726453792352,6.8966,130.5,130.46,6.8984]
[1726453792733,0.2542938,130.53,130.44,15.147]
[1726453792734,6.896,130.51,130.47,6.898]
[1726453794161,0.2542938,130.53,130.49,6.8969]
[1726453794651,0.2542938,130.53,130.48,6.8974]
[1726453795355,0.2542938,130.53,130.45,6.375]
[1726453795356,6.8961,130.51,130.46,23.776884]
[1726453795738,0.2542938,130.53,130.47,6.8977]
[1726453795739,6.8955,130.52,130.47,6.8977]
[1726453796555,6.8955,130.52,130.48,6.8975]
[1726453797259,7.1493938,130.53,130.48,6.8975]
[1726453800937,6.8955,130.52,130.48,6.8975]
[1726453801139,6.8955,130.52,130.47,6.8979]
[1726453801345,6.896,130.51,130.47,6.8979]
[1726453801756,6.8966,130.5,130.46,6.8985]
[1726453802061,6.8971,130.49,130.45,6.899]
[1726453802245,0.2542938,130.53,130.44,15.147]
[1726453802445,7.1492938,130.53,130.44,31.00324514]
[1726453802766,7.1492938,130.53,130.45,4.02699435]
[1726453802928,7.1492938,130.53,130.48,6.8974]
[1726453803736,0.2542938,130.53,130.49,6.8969]
[1726453804156,0.2542938,130.53,130.5,6.8964]
[1726453805157,0.2542938,130.53,130.49,6.8969]
[1726453805458,0.2542938,130.53,130.48,6.8975]
[1726453805459,7.1493938,130.53,130.48,6.8975]
[1726453805634,6.8956,130.52,130.47,6.898]
[1726453805963,0.2542938,130.53,130.46,23.776884]
[1726453806258,0.2542938,130.53,130.44,15.147]
[1726453806429,6.8966,130.5,130.45,6.8991]
[1726453806747,6.8971,130.49,130.44,22.0466]
[1726453806942,6.5425,130.51,130.41,4.02832905]
[1726453807143,6.8976,130.48,130.4,22.6029938]
[1726453807452,6.8976,130.48,130.41,6.9008]
[1726453807633,6.8976,130.48,130.42,6.9004]
[1726453807835,6.897,130.5,130.4,22.6029938]
[1726453808056,6.5425,130.51,130.41,15.85624514]
[1726453808253,23.4018938,130.53,130.47,6.8976]
[1726453808570,16.5069938,130.53,130.48,6.8974]
[1726453809163,16.5069938,130.53,130.47,23.776884]
[1726453809451,6.8956,130.52,130.47,30.674984]
[1726453810035,16.5069938,130.53,130.45,15.8242]
[1726453812336,6.8965,130.5,130.45,15.8242]
[1726453813247,6.8965,130.5,130.45,22.7231]
[1726453815546,6.8971,130.49,130.45,22.7231]
[1726453815746,6.8971,130.49,130.45,15.8242]
[1726453816263,6.8971,130.49,130.44,6.8996]
[1726453818261,6.8965,130.5,130.45,6.8989]
[1726453820268,6.8971,130.49,130.45,6.8989]
[1726453822249,0.2542938,130.53,130.46,23.776884]
[1726453822460,0.2542938,130.53,130.49,6.8966]
[1726453824257,0.2542938,130.53,130.48,43.776884]
[1726453824443,0.2542938,130.53,130.52,30.672284]
[1726453825352,0.2542938,130.53,130.52,66.494584]
[1726453825975,0.2542938,130.57,130.56,6.8933]
[1726453826276,0.2542938,130.57,130.53,43.776884]
[1726453826861,0.2542938,130.57,130.55,6.8934]
[1726453827062,0.2542938,130.57,130.56,6.8933]
[1726453827663,0.2542938,130.57,130.55,6.8938]
[1726453831280,0.2542938,130.57,130.53,43.776884]
[1726453831281,0.2542938,130.57,130.53,50.671284]
[1726453831575,0.2542938,130.57,130.53,30.671284]
[1726453832081,7.1471938,130.57,130.53,6.8944]
[1726453832260,7.1471938,130.57,130.52,6.8953]
[1726453833453,6.8934,130.56,130.52,6.8953]
[1726453833655,6.8934,130.56,130.51,6.896]
[1726453835684,6.8934,130.56,130.52,6.8954]
[1726453835988,7.1471938,130.57,130.52,6.8954]
[1726453841687,0.2542938,130.57,130.5,23.776884]
[1726453841889,0.2542938,130.57,130.55,6.8938]
[1726453842077,0.2542938,130.57,130.54,6.8943]
[1726453843073,0.2542938,130.57,130.55,6.8938]
[1726453844963,0.2542938,130.57,130.56,6.8933]
[1726453845487,0.2542938,130.57,130.56,30.670184]
[1726453855008,0.2542938,130.57,130.56,6.8933]
[1726453857296,0.2542938,130.57,130.56,30.670184]
[1726453864000,0.2542938,130.57,130.56,50.670184]
[1726453864511,0.2542938,130.57,130.56,75.37044859]
[1726453866102,0.2542938,130.57,130.56,50.670184]
[1726453867376,0.2542938,130.57,130.56,6.8933]
[1726453867576,0.2542938,130.57,130.54,15.088]
[1726453867577,0.2542938,130.57,130.55,6.8938]
[1726453868512,0.2542938,130.57,130.54,6.8943]
[1726453869085,0.2542938,130.57,130.55,6.8938]
[1726453870291,0.2542938,130.57,130.54,6.8943]
[1726453870498,0.2542938,130.57,130.53,6.8949]
[1726453871408,7.1471938,130.57,130.53,6.8949]
[1726453871803,0.2542938,130.57,130.53,6.8949]
[1726453872411,7.1470938,130.57,130.52,6.8953]
[1726453872592,7.1470938,130.57,130.5,10.92134796]
[1726453872593,6.894,130.55,130.5,10.92134796]
[1726453872802,6.894,130.55,130.5,6.8961]
[1726453873310,6.8145938,130.57,130.49,6.8969]
[1726453873515,6.8145938,130.57,130.47,22.4847]
[1726453874204,6.894,130.55,130.5,6.8964]
[1726453874508,6.8944,130.54,130.5,6.8964]
[1726453874709,6.894,130.55,130.5,6.8964]
[1726453874910,13.7077938,130.57,130.48,20.0]
[1726453875090,13.7077938,130.57,130.49,23.776884]
[1726453875289,6.8145938,130.57,130.49,39.58804988]
[1726453875995,0.2542938,130.57,130.51,23.776884]
[1726453876314,0.2542938,130.57,130.54,6.894]
[1726453877601,0.2542938,130.57,130.53,6.8949]
[1726453878296,0.2542938,130.57,130.54,6.8944]
[1726453880292,0.2542938,130.57,130.55,6.8938]
[1726453885692,0.2542938,130.57,130.56,6.8933]
[1726453889325,0.2542938,130.57,130.56,81.94629748]
[1726453889530,0.2542938,130.57,130.56,97.32489748]
[1726453891698,0.2542938,130.57,130.56,66.048784]
[1726453891923,0.2542938,130.57,130.56,26.8933]
[1726453893425,0.2542938,130.57,130.56,50.670184]
[1726453893803,0.2542938,130.57,130.56,75.37619748]
[1726453899212,0.2542938,130.61,130.56,75.37619748]
[1726453899213,0.2542938,130.61,130.6,6.8912]
[1726453899426,0.2542938,130.61,130.6,50.668084]
[1726453910428,0.2542938,130.65,130.64,6.8891]
[1726453910824,0.2542938,130.65,130.64,30.665984]
[1726453911220,0.2542938,130.65,130.64,6.8891]
[1726453912760,0.2542938,130.65,130.64,30.665984]
[1726453917423,0.2542938,130.65,130.64,6.8891]
[1726453918847,0.2542938,130.65,130.64,30.665984]
[1726453922349,0.2542938,130.65,130.64,63.29326815]
[1726453923731,0.2542938,130.65,130.64,64.82292709]
[1726453923955,0.2542938,130.65,130.64,71.91570554]
[1726453924153,0.2542938,130.65,130.64,70.3860466]
[1726453924659,0.2542938,130.65,130.64,71.91566313]
[1726453925038,0.2542938,130.65,130.64,70.3860466]
[1726453925239,0.2542938,130.65,130.64,71.91496061]
[1726453926248,0.2542938,130.65,130.64,70.3860466]
[1726453928058,0.2542938,130.65,130.64,71.91506367]
[1726453928252,0.2542938,130.65,130.64,70.3860466]
[1726453929371,9.38e-05,130.65,130.64,70.3860466]
[1726453935147,9.38e-05,130.65,130.64,74.40578218]
[1726453935663,9.38e-05,130.65,130.64,74.40560532]
[1726453935865,9.38e-05,130.65,130.64,78.42516404]
[1726453936058,0.2542938,130.69,130.68,26.887]
[1726453936262,0.2542938,130.69,130.68,50.663884]
[1726453940078,0.2542938,130.69,130.68,70.3839466]
[1726453943950,0.2542938,130.69,130.68,63.27389164]
[1726453949286,0.2542938,130.69,130.68,6.887]
[1726453950676,0.2542938,130.69,130.68,26.887]
[1726453951293,0.2542938,130.69,130.68,50.663884]
[1726453953300,0.2542938,130.69,130.68,30.663884]
[1726453954397,0.2542938,130.69,130.68,43.27389164]
[1726453954694,0.2542938,130.69,130.68,63.27389164]
[1726453961009,0.2542938,130.69,130.68,50.663884]
[1726453961212,0.2542938,130.69,130.68,26.887]
[1726453962408,0.2542938,130.69,130.68,63.27389164]
[1726453965186,0.2542938,130.73,130.69,43.776884]
[1726453965495,0.2542938,130.73,130.72,56.38689164]
[1726453965689,0.2542938,130.73,130.72,43.776884]
[1726453966188,0.2542938,130.73,130.72,56.38689164]
[1726453967985,0.2542938,130.73,130.72,23.776884]
[1726453968303,0.2542938,130.73,130.65,26.05983989]
[1726453968507,0.2542938,130.73,130.66,4.01520031]
[1726453968891,0.2542938,130.73,130.65,23.7114402]
[1726453969198,6.3907938,130.73,130.65,23.7114402]
[1726453970419,6.3907938,130.73,130.66,24.01348761]
[1726453970581,6.3907938,130.73,130.67,19.69623989]
[1726453970786,6.3907938,130.73,130.69,23.776884]
[1726453971306,6.3907938,130.73,130.67,23.776884]
[1726453971499,6.3907938,130.73,130.68,20.0]
[1726453973816,6.3907938,130.73,130.69,23.776884]
[1726453977112,6.3907938,130.73,130.71,23.776884]
[1726453979491,0.2542938,130.73,130.71,23.776884]
[1726453979794,0.2542938,130.73,130.68,20.0]
[1726453979795,0.2542938,130.73,130.7,23.776884]
[1726453980413,0.2542938,130.73,130.69,23.776884]
[1726453980599,0.2542938,130.73,130.7,23.776884]
[1726453981088,6.656,130.72,130.6,15.1889]
[1726453981289,15.6467,130.71,130.62,34.01313062]
[1726453981611,15.6467,130.71,130.62,30.0]
[1726453981612,6.1532,130.7,130.62,30.0]
[1726453981799,6.888,130.67,130.59,0.2542938]
[1726453982516,16.5342,130.69,130.59,0.2542938]
[1726453982814,16.5342,130.69,130.59,4.27116579]
[1726453983124,16.5342,130.69,130.6,4.01687199]
[1726453983423,16.5342,130.69,130.59,4.27116579]
[1726453983629,16.5342,130.69,130.6,23.776884]
[1726453984138,6.8881,130.66,130.59,0.2542938]
[1726453984339,6.0034,130.64,130.59,0.2542938]
[1726453990124,16.5342,130.69,130.6,23.776884]
[1726453990125,6.4867,130.68,130.6,23.776884]
[1726453990331,6.8876,130.67,130.6,23.776884]
[1726453991336,6.8881,130.66,130.6,23.776884]
[1726453991832,6.8886,130.65,130.6,23.776884]
[1726453992925,6.8901,130.63,130.59,0.2542938]
[1726453993106,6.8912,130.61,130.59,0.2542938]
[1726453993305,6.3674,130.62,130.59,0.2542938]
[1726453993306,13.2576,130.62,130.59,0.2542938]
[1726453994434,6.8907,130.61,130.59,0.2542938]
[1726453995315,13.2576,130.62,130.59,0.2542938]
[1726453997319,6.3674,130.62,130.59,0.2542938]
[1726453998823,6.8911,130.61,130.59,0.2542938]
[1726453999333,6.8911,130.61,130.55,0.2542938]
[1726453999334,6.893,130.57,130.55,0.2542938]
[1726454002315,6.8923,130.58,130.55,0.2542938]
[1726454009720,6.8913,130.6,130.55,7.1477938]
[1726454010332,6.8919,130.59,130.55,7.1477938]
[1726454010838,6.8919,130.59,130.55,0.2542938]
[1726454011319,6.8913,130.6,130.55,30.9249778]
[1726454011647,6.3674,130.62,130.55,30.9249778]
[1726454011648,6.8918,130.59,130.55,30.9249778]
[1726454011946,6.3674,130.62,130.55,30.9249778]
[1726454011947,6.8911,130.61,130.55,24.0311778]
[1726454012146,6.8914,130.6,130.55,30.9245778]
[1726454013446,6.8924,130.58,130.55,0.2542938]
[1726454014331,6.8918,130.59,130.55,0.2542938]
[1726454014726,6.8913,130.6,130.55,0.2542938]
[1726454018945,6.8908,130.61,130.55,0.2542938]
[1726454021244,6.8912,130.6,130.55,0.2542938]
[1726454021447,6.8907,130.61,130.55,0.2542938]
[1726454022266,6.8925,130.58,130.55,0.2542938]
[1726454022559,6.8919,130.59,130.55,0.2542938]
[1726454023644,6.8923,130.58,130.55,0.2542938]
[1726454024535,6.893,130.57,130.55,0.2542938]
[1726454025459,23.5934,130.62,130.55,0.2542938]
[1726454025651,6.8921,130.59,130.55,24.0311778]
[1726454026037,6.8928,130.57,130.55,0.2542938]
[1726454026442,23.5934,130.62,130.55,0.2542938]
[1726454026443,6.8933,130.56,130.55,0.2542938]
[1726454026858,6.8929,130.57,130.55,0.2542938]
[1726454033066,23.5934,130.62,130.55,0.2542938]
[1726454033273,6.8908,130.61,130.57,6.8928]
[1726454033472,6.8913,130.6,130.56,6.8932]
[1726454033966,6.8918,130.59,130.55,0.2542938]
[1726454034872,6.8914,130.6,130.55,7.1477938]
[1726454035364,6.8914,130.6,130.56,23.776884]
[1726454039152,6.8923,130.59,130.55,0.2542938]
[1726454040373,6.8914,130.6,130.55,0.2542938]
[1726454040671,6.8918,130.59,130.55,0.2542938]
[1726454040848,6.3674,130.62,130.55,0.2542938]
[1726454040849,6.8924,130.58,130.55,0.2542938]
[1726454041165,6.8929,130.57,130.55,0.2542938]
[1726454041344,6.3674,130.62,130.55,0.2542938]
[1726454041543,17.25506581,130.62,130.55,0.2542938]
[1726454041775,10.88766581,130.61,130.55,0.2542938]
[1726454042157,6.8928,130.57,130.55,0.2542938]
[1726454044044,6.893,130.57,130.55,0.2542938]
[1726454045576,6.8933,130.56,130.55,0.2542938]
[1726454055305,6.8954,130.52,130.51,0.2542938]
[1726454056366,15.0485,130.58,130.51,0.2542938]
[1726454056681,23.2585,130.6,130.52,6.8953]
[1726454056885,6.8934,130.56,130.51,0.2542938]
[1726454057186,6.8939,130.55,130.51,7.1502938]
[1726454057482,6.8939,130.55,130.51,0.2542938]
[1726454057650,6.8953,130.53,130.51,0.2542938]
[1726454060190,6.8954,130.52,130.51,0.2542938]
[1726454062001,6.895,130.53,130.51,0.2542938]
[1726454062163,6.8945,130.54,130.51,0.2542938]
[1726454062894,6.8954,130.52,130.51,0.2542938]
[1726454063593,6.895,130.53,130.51,0.2542938]
[1726454064091,6.8944,130.54,130.51,0.2542938]
[1726454069866,34.50205075,130.57,130.51,0.2542938]
[1726454069867,6.8954,130.52,130.51,0.2542938]
[1726454074705,6.8951,130.53,130.51,0.2542938]
[1726454079201,6.8954,130.52,130.51,0.2542938]
[1726454079402,17.2351,130.55,130.48,15.8358938]
[1726454079403,23.776884,130.54,130.48,0.2542938]
[1726454080188,17.2379,130.53,130.48,0.2542938]
[1726454080403,6.897,130.49,130.48,0.2542938]
[1726454082918,17.2379,130.53,130.48,0.2542938]
[1726454082919,6.8967,130.5,130.48,0.2542938]
[1726454083901,6.897,130.49,130.48,0.2542938]
[1726454093911,6.8965,130.5,130.48,0.2542938]
[1726454095090,6.896,130.51,130.48,0.2542938]
[1726454095408,6.8967,130.5,130.48,0.2542938]
[1726454100291,1.33706148,130.53,130.48,0.2542938]
[1726454100518,6.8942,130.55,130.5,6.896]
[1726454100731,6.8942,130.55,130.51,6.8958]
[1726454101388,6.8945,130.54,130.5,6.8964]
[1726454101589,6.895,130.53,130.49,6.8969]
[1726454101887,6.8945,130.54,130.49,6.8969]
[1726454103695,39.4212,130.58,130.5,6.8965]
[1726454103896,6.8935,130.56,130.51,6.8959]
[1726454104117,6.8935,130.56,130.52,22.4269]
[1726454105126,6.8929,130.57,130.52,15.5315]
[1726454105297,17.4816938,130.61,130.54,6.8942]
[1726454105298,6.8924,130.58,130.54,6.8942]
[1726454105691,6.8924,130.58,130.53,6.8949]
[1726454106236,6.8914,130.6,130.55,6.8937]
[1726454106903,0.2542938,130.61,130.54,6.8944]
[1726454106904,6.8919,130.59,130.54,6.8944]
[1726454107098,6.8924,130.58,130.53,13.1505]
[1726454107720,6.8924,130.58,130.54,6.8943]
[1726454109413,0.2542938,130.61,130.53,6.2556]
[1726454109907,6.8924,130.58,130.53,13.1501]
[1726454110410,6.8924,130.58,130.54,6.8943]
[1726454110594,6.8919,130.59,130.54,6.8943]
[1726454110927,0.2542938,130.61,130.54,23.776884]
[1726454111136,7.1453938,130.61,130.56,6.8929]
[1726454111316,7.1450938,130.61,130.56,6.8929]
[1726454111499,7.1450938,130.61,130.57,6.8927]
[1726454113519,7.1450938,130.61,130.54,23.776884]
[1726454114404,0.2542938,130.61,130.54,23.776884]
[1726454114599,0.2542938,130.61,130.53,18.90482728]
[1726454114600,0.2542938,130.61,130.57,23.776884]
[1726454115620,7.1450938,130.61,130.56,15.4844]
[1726454115822,6.8916,130.6,130.56,15.4844]
[1726454116842,6.8926,130.58,130.53,6.2556]
[1726454117022,0.2542938,130.61,130.53,6.2556]
[1726454117919,6.8918,130.59,130.54,6.8944]
[1726454119429,6.8913,130.6,130.55,6.8938]
[1726454119618,7.1450938,130.61,130.54,23.776884]
[1726454120230,0.2542938,130.61,130.56,23.776884]
[1726454120730,0.2542938,130.61,130.6,6.8912]
[1726454120919,0.2542938,130.61,130.6,23.3288]
[1726454121426,0.2542938,130.61,130.6,47.105684]
[1726454122636,0.2542938,130.61,130.6,23.3288]
[1726454124011,0.2542938,130.61,130.6,47.105684]
[1726454127228,0.2542938,130.61,130.6,67.105684]
[1726454134721,0.2542938,130.61,130.6,68.63551675]
[1726454134928,0.2542938,130.61,130.6,67.105684]
[1726454135723,0.2542938,130.65,130.61,43.776884]
[1726454141542,0.2542938,130.65,130.62,6.1441]
[1726454141740,0.2542938,130.65,130.63,23.776884]
[1726454145233,0.2542938,130.65,130.64,43.776884]
[1726454145752,0.2542938,130.65,130.64,60.205084]
[1726454148955,0.2542938,130.65,130.64,16.4282]
[1726454149667,0.2542938,130.65,130.61,20.0]
[1726454150533,0.2542938,130.65,130.6,15.6878]
[1726454151257,0.2542938,130.65,130.61,23.776884]
[1726454151834,0.2542938,130.65,130.62,20.0]
[1726454152037,0.2542938,130.65,130.63,23.776884]
[1726454160390,0.2542938,130.65,130.64,20.0]
[1726454160568,0.2542938,130.65,130.64,43.776884]
[1726454169161,0.2542938,130.65,130.6,15.6878]
[1726454169474,0.2542938,130.65,130.61,30.0]
[1726454170178,0.2542938,130.65,130.6,28.31789056]
[1726454170405,0.2542938,130.65,130.53,15.5841]
[1726454170590,0.2542938,130.65,130.55,30.0]
[1726454170882,0.2542938,130.65,130.54,16.63656419]
[1726454171071,0.2542938,130.65,130.55,4.00647363]
[1726454171267,23.009,130.63,130.56,4.00647363]
[1726454171472,16.1189,130.63,130.53,15.5841]
[1726454171691,16.1189,130.63,130.54,4.00690637]
[1726454171891,16.1189,130.63,130.52,12.63009056]
[1726454172091,16.1189,130.63,130.53,4.0070729]
[1726454172297,16.1189,130.63,130.54,4.0070729]
[1726454172490,16.1189,130.63,130.53,4.0070729]
[1726454172691,16.1189,130.63,130.54,4.0070729]
[1726454172995,6.8918,130.59,130.52,4.0076867]
[1726454173297,12.8943,130.59,130.52,4.0076867]
[1726454173500,12.8943,130.59,130.51,0.2542938]
[1726454173501,6.8925,130.58,130.51,0.2542938]
[1726454173803,22.0552,130.58,130.51,0.2542938]
[1726454174370,22.0552,130.58,130.51,20.2542938]
[1726454174785,22.0552,130.58,130.52,23.776884]
[1726454176068,15.1627,130.58,130.52,23.776884]
[1726454185505,22.0551,130.58,130.52,23.776884]
[1726454188585,15.1627,130.58,130.52,23.776884]
[1726454189177,6.893,130.57,130.52,23.776884]
[1726454189417,6.8937,130.56,130.51,0.2542938]
[1726454189587,6.8939,130.55,130.51,0.2542938]
[1726454190198,6.8935,130.56,130.51,0.2542938]
[1726454195605,6.8928,130.57,130.51,0.2542938]
[1726454197893,6.8935,130.56,130.51,0.2542938]
[1726454200297,6.893,130.57,130.51,0.2542938]
[1726454206094,6.8935,130.56,130.51,0.2542938]
[1726454209094,15.1627,130.58,130.51,0.2542938]
[1726454209511,22.0555,130.58,130.51,0.2542938]
[1726454209721,6.8929,130.57,130.51,0.2542938]
[1726454210326,22.0551,130.58,130.51,0.2542938]
[1726454210498,6.8924,130.58,130.51,0.2542938]
[1726454212028,16.4393,130.61,130.53,23.776884]
[1726454212402,6.8918,130.59,130.53,23.776884]
[1726454212823,16.4393,130.61,130.53,23.776884]
[1726454212824,6.8923,130.58,130.53,23.776884]
[1726454216529,6.8929,130.57,130.53,23.776884]
[1726454218635,6.8929,130.57,130.52,15.1909]
[1726454218805,6.8935,130.56,130.51,0.2542938]
[1726454219131,6.8935,130.56,130.51,24.0311778]
[1726454221230,6.894,130.55,130.51,0.2542938]
[1726454223815,17.23,130.59,130.51,0.2542938]
[1726454224225,6.8934,130.56,130.51,0.2542938]
[1726454225014,6.8941,130.55,130.51,0.2542938]
[1726454226010,15.4552,130.56,130.51,0.2542938]
[1726454226308,6.8954,130.53,130.51,0.2542938]
[1726454227513,6.8954,130.52,130.51,0.2542938]
[1726454228143,6.897,130.5,130.48,0.2542938]
[1726454228437,6.8961,130.51,130.48,0.2542938]
[1726454230236,15.4552,130.56,130.48,0.2542938]
[1726454230735,6.894,130.55,130.48,0.2542938]
[1726454231239,6.8934,130.56,130.49,23.776884]
[1726454232121,6.8951,130.53,130.48,20.2542938]
[1726454232422,6.8962,130.51,130.48,0.2542938]
[1726454232643,6.8956,130.52,130.48,0.2542938]
[1726454233931,6.896,130.51,130.48,0.2542938]
[1726454234825,6.8956,130.52,130.48,0.2542938]
[1726454237140,6.895,130.53,130.48,0.2542938]
[1726454237347,6.8944,130.54,130.48,0.2542938]
[1726454238828,15.5994,130.55,130.48,0.2542938]
[1726454239031,6.8961,130.51,130.48,0.2542938]
[1726454239228,6.897,130.49,130.48,0.2542938]
[1726454240317,6.8966,130.5,130.48,0.2542938]
[1726454240744,6.897,130.49,130.48,0.2542938]
[1726454241442,6.8961,130.51,130.48,0.2542938]
[1726454243122,6.897,130.49,130.48,0.2542938]
[1726454243325,6.8967,130.5,130.48,0.2542938]
[1726454246958,6.8961,130.51,130.48,0.2542938]
[1726454249157,6.8968,130.5,130.48,0.2542938]
[1726454249352,6.5814,130.53,130.48,0.2542938]
[1726454250146,6.8966,130.5,130.48,0.2542938]
[1726454253044,6.8961,130.51,130.48,0.2542938]
[1726454255659,6.8956,130.52,130.48,0.2542938]
[1726454257845,15.5994,130.55,130.48,0.2542938]
[1726454257846,6.8949,130.53,130.48,0.2542938]
[1726454259567,6.8955,130.52,130.48,0.2542938]
[1726454260548,6.8961,130.51,130.48,0.2542938]
[1726454262271,6.8955,130.52,130.48,0.2542938]
[1726454262447,32.8345,130.55,130.48,0.2542938]
[1726454263349,6.8949,130.53,130.48,0.2542938]
[1726454263544,6.8944,130.54,130.48,0.2542938]
[1726454263753,6.8944,130.54,130.48,6.7456938]
[1726454265167,6.8938,130.56,130.5,16.0409]
[1726454265774,6.8939,130.55,130.5,16.0409]
[1726454265943,6.8935,130.56,130.5,16.0409]
[1726454266143,6.8929,130.57,130.5,16.0409]
[1726454266577,6.8929,130.57,130.51,23.776884]
[1726454267474,6.8921,130.59,130.51,23.776884]
[1726454267847,6.8924,130.58,130.51,23.776884]
[1726454268969,6.8929,130.57,130.51,23.776884]
[1726454271388,6.8933,130.56,130.51,23.776884]
[1726454271679,6.8933,130.56,130.5,16.0409]
[1726454273168,6.8929,130.57,130.51,23.776884]
[1726454274180,17.4816938,130.61,130.51,36.43575663]
[1726454274382,6.8922,130.59,130.53,23.776884]
[1726454274685,6.8922,130.59,130.54,15.3249]
[1726454280973,0.2542938,130.61,130.54,15.3249]
[1726454280974,6.8913,130.6,130.54,15.3249]
[1726454282457,6.8918,130.59,130.54,15.3249]
[1726454283100,0.2542938,130.61,130.55,43.776884]
[1726454283264,0.2542938,130.61,130.56,6.4308]
[1726454284705,7.1450938,130.61,130.56,6.4308]
[1726454288301,0.2542938,130.61,130.56,6.4308]
[1726454289088,7.1450938,130.61,130.56,6.4308]
[1726454292613,0.2542938,130.61,130.58,15.1849]
[1726454293800,0.2542938,130.61,130.59,23.776884]
[1726454294478,0.2542938,130.61,130.6,30.393584]
[1726454294881,0.2542938,130.65,130.61,43.776884]
[1726454295690,0.2542938,130.65,130.61,56.43575663]
[1726454296007,0.2542938,130.65,130.63,42.51925663]
[1726454296308,0.2542938,130.65,130.64,36.43575663]
[1726454296684,0.2542938,130.65,130.64,56.43575663]
[1726454296884,0.2542938,130.65,130.64,71.83685663]
[1726454297686,0.2542938,130.69,130.65,23.776884]
[1726454297884,0.2542938,130.69,130.67,23.776884]
[1726454298309,0.2542938,130.69,130.67,25.30511569]
[1726454298680,0.2542938,130.69,130.67,23.776884]
[1726454302915,0.2542938,130.69,130.65,12.65887263]
[1726454302916,0.2542938,130.69,130.66,43.776884]
[1726454303815,0.2542938,130.69,130.65,23.776884]
[1726454305427,0.2542938,130.69,130.65,36.43575663]
[1726454305801,0.2542938,130.69,130.65,23.776884]
[1726454309318,0.2542938,130.69,130.65,36.43575663]
[1726454310226,0.2542938,130.69,130.66,12.65887263]
[1726454310430,0.2542938,130.69,130.67,23.776884]
[1726454310626,0.2542938,130.69,130.65,36.43575663]
[1726454310815,0.2542938,130.69,130.67,23.776884]
[1726454311515,0.2542938,130.69,130.67,36.43575663]
[1726454311933,0.2542938,130.69,130.67,23.776884]
[1726454312319,0.2542938,130.69,130.66,43.776884]
[1726454314104,0.2542938,130.69,130.65,23.776884]
[1726454327643,0.2542938,130.69,130.64,15.4011]
[1726454328818,0.2542938,130.69,130.64,43.776884]
[1726454330645,0.2542938,130.69,130.64,56.43575663]
[1726454330839,0.2542938,130.69,130.66,23.776884]
[1726454332926,0.2542938,130.69,130.65,23.776884]
[1726454335429,0.2542938,130.69,130.65,36.43575663]
[1726454338431,0.2542938,130.69,130.67,36.43575663]
[1726454339139,0.2542938,130.69,130.67,23.776884]
[1726454340251,0.2542938,130.69,130.66,23.776884]
[1726454340749,0.2542938,130.69,130.65,36.43575663]
[1726454341120,0.2542938,130.69,130.66,12.65887263]
[1726454341337,0.2542938,130.69,130.67,23.776884]
[1726454343753,0.2542938,130.69,130.67,36.43575663]
[1726454345745,0.2542938,130.69,130.68,36.43575663]
[1726454346550,0.2542938,130.69,130.67,36.43575663]
[1726454351260,0.2542938,130.69,130.67,23.776884]
[1726454353563,0.2542938,130.69,130.68,12.65887263]
[1726454353743,0.2542938,130.69,130.68,36.43575663]
[1726454356645,0.2542938,130.69,130.67,23.776884]
[1726454358134,0.2542938,130.69,130.67,36.43575663]
[1726454359360,0.2542938,130.69,130.68,32.65887263]
[1726454359684,0.2542938,130.69,130.68,56.43575663]
[1726454363677,0.2542938,130.69,130.68,43.776884]
[1726454368482,0.2542938,130.69,130.67,23.776884]
[1726454371576,0.2542938,130.69,130.66,16.5436]
[1726454371899,0.2542938,130.69,130.64,6.0544]
[1726454371900,0.2542938,130.69,130.65,20.0]
[1726454372368,0.2542938,130.69,130.64,18.71327263]
[1726454373083,0.2542938,130.69,130.65,23.776884]
[1726454373801,0.2542938,130.69,130.64,20.0]
[1726454374185,0.2542938,130.69,130.6,15.8603]
[1726454374186,7.1407938,130.69,130.6,15.8603]
[1726454374390,21.9982,130.68,130.6,15.8603]
[1726454374888,15.1107,130.68,130.62,12.65887263]
[1726454375091,15.1107,130.68,130.63,12.65887263]
[1726454375297,0.2542938,130.69,130.63,12.65887263]
[1726454375500,0.2542938,130.69,130.64,23.776884]
[1726454376702,0.2542938,130.69,130.64,36.43575663]